[Event "December 12 Late 2023"]
[Site "https://www.chess.com"]
[Date "2023.12.12"]
[Round "1"]
[White "Rodgers, Jack"]
[Black "Bhandari, Krish"]
[Result "1/2-1/2"]
[Board "153"]
[TimeControl "180+1"]
[WhiteFideId "3220885"]
[BlackFideId "30955106"]
[WhiteElo "2532"]
[BlackElo "2099"]
[WhiteTeam "AUS"]
[BlackTeam "USA"]
[WhiteClock "0:00:05"]
[BlackClock "0:00:10"]

1. d4 {[%clk 0:03:00]}  d5 {[%clk 0:02:50]} 2. Bg5 {[%clk 0:02:59]}  Nd7 {[%clk 0:02:48]} 3. e3 {[%clk 0:02:55]}  Ndf6 {[%clk 0:02:48]} 4. Nd2 {[%clk 0:02:53]}  h6 {[%clk 0:02:48]} 5. Bh4 {[%clk 0:02:52]}  e6 {[%clk 0:02:49]} 6. Bd3 {[%clk 0:02:52]}  Bd6 {[%clk 0:02:46]} 7. f4 {[%clk 0:02:50]}  Ne7 {[%clk 0:02:42]} 8. Ngf3 {[%clk 0:02:46]}  Nf5 {[%clk 0:02:40]} 9. Bf2 {[%clk 0:02:45]}  Ng4 {[%clk 0:02:41]} 10. Qe2 {[%clk 0:02:41]}  h5 {[%clk 0:02:28]} 11. Ne5 {[%clk 0:02:25]}  Nxf2 {[%clk 0:02:06]} 12. Qxf2 {[%clk 0:02:26]}  f6 {[%clk 0:02:00]} 13. Ng6 {[%clk 0:02:07]}  Rh6 {[%clk 0:02:00]} 14. Nh4 {[%clk 0:02:08]}  c6 {[%clk 0:01:45]} 15. c3 {[%clk 0:01:57]}  Bd7 {[%clk 0:01:40]} 16. e4 {[%clk 0:01:47]}  Nxh4 {[%clk 0:01:39]} 17. Qxh4 {[%clk 0:01:46]}  Qe7 {[%clk 0:01:25]} 18. e5 {[%clk 0:01:40]}  fxe5 {[%clk 0:01:21]} 19. Qxe7+ {[%clk 0:01:38]}  Bxe7 {[%clk 0:01:20]} 20. fxe5 {[%clk 0:01:36]}  Kf8 {[%clk 0:01:06]} 21. Ke2 {[%clk 0:01:35]}  Kg8 {[%clk 0:01:06]} 22. Raf1 {[%clk 0:01:31]}  Be8 {[%clk 0:01:05]} 23. h4 {[%clk 0:01:22]}  Bg6 {[%clk 0:01:02]} 24. Rf3 {[%clk 0:01:14]}  Rf8 {[%clk 0:00:59]} 25. Rxf8+ {[%clk 0:01:08]}  Bxf8 {[%clk 0:00:57]} 26. g3 {[%clk 0:01:05]}  Bxd3+ {[%clk 0:00:52]} 27. Kxd3 {[%clk 0:01:06]}  Rg6 {[%clk 0:00:53]} 28. Nf1 {[%clk 0:01:04]}  Rg4 {[%clk 0:00:52]} 29. Rh2 {[%clk 0:01:02]}  g6 {[%clk 0:00:48]} 30. Rf2 {[%clk 0:01:01]}  Be7 {[%clk 0:00:42]} 31. Rf3 {[%clk 0:01:00]}  g5 {[%clk 0:00:37]} 32. Ne3 {[%clk 0:00:50]}  Re4 {[%clk 0:00:31]} 33. hxg5 {[%clk 0:00:50]}  Bxg5 {[%clk 0:00:32]} 34. Ng2 {[%clk 0:00:50]}  c5 {[%clk 0:00:26]} 35. b3 {[%clk 0:00:48]}  cxd4 {[%clk 0:00:21]} 36. cxd4 {[%clk 0:00:48]}  a5 {[%clk 0:00:19]} 37. Nf4 {[%clk 0:00:47]}  Bxf4 {[%clk 0:00:19]} 38. gxf4 {[%clk 0:00:46]}  Kg7 {[%clk 0:00:19]} 39. f5 {[%clk 0:00:45]}  exf5 {[%clk 0:00:19]} 40. Rxf5 {[%clk 0:00:46]}  h4 {[%clk 0:00:16]} 41. Rh5 {[%clk 0:00:42]}  Kg6 {[%clk 0:00:12]} 42. Rh8 {[%clk 0:00:40]}  Kg7 {[%clk 0:00:12]} 43. Rc8 {[%clk 0:00:15]}  h3 {[%clk 0:00:10]} 44. Rc1 {[%clk 0:00:12]}  h2 {[%clk 0:00:05]} 45. Rh1 {[%clk 0:00:12]}  Rh4 {[%clk 0:00:06]} 46. Ke3 {[%clk 0:00:09]}  Kg6 {[%clk 0:00:05]} 47. Kf3 {[%clk 0:00:08]}  Rxd4 {[%clk 0:00:05]} 48. Rxh2 {[%clk 0:00:08]}  Re4 {[%clk 0:00:05]} 49. Rg2+ {[%clk 0:00:06]}  Kf5 {[%clk 0:00:05]} 50. Rh2 {[%clk 0:00:07]}  Kxe5 {[%clk 0:00:05]} 51. Rh7 {[%clk 0:00:07]}  b5 {[%clk 0:00:05]} 52. Rb7 {[%clk 0:00:07]}  Rb4 {[%clk 0:00:03]} 53. Ra7 {[%clk 0:00:07]}  a4 {[%clk 0:00:03]} 54. bxa4 {[%clk 0:00:02]}  Rxa4 {[%clk 0:00:03]} 55. Rb7 {[%clk 0:00:02]}  Ra3+ {[%clk 0:00:03]} 56. Ke2 {[%clk 0:00:02]}  Rxa2+ {[%clk 0:00:03]} 57. Kd3 {[%clk 0:00:03]}  Ra5 {[%clk 0:00:04]} 58. Kc3 {[%clk 0:00:03]}  d4+ {[%clk 0:00:04]} 59. Kb4 {[%clk 0:00:03]}  Ra1 {[%clk 0:00:04]} 60. Kb3 {[%clk 0:00:03]}  d3 {[%clk 0:00:04]} 61. Kc3 {[%clk 0:00:03]}  Ra3+ {[%clk 0:00:03]} 62. Kd2 {[%clk 0:00:03]}  Kd4 {[%clk 0:00:03]} 63. Rxb5 {[%clk 0:00:02]}  Ra2+ {[%clk 0:00:03]} 64. Kc1 {[%clk 0:00:02]}  Kc3 {[%clk 0:00:02]} 65. Rc5+ {[%clk 0:00:02]}  Kd4 {[%clk 0:00:02]} 66. Rc8 {[%clk 0:00:03]}  Ra1+ {[%clk 0:00:02]} 67. Kd2 {[%clk 0:00:03]}  Ra2+ {[%clk 0:00:03]} 68. Kd1 {[%clk 0:00:03]}  Ra5 {[%clk 0:00:03]} 69. Rd8+ {[%clk 0:00:03]}  Rd5 {[%clk 0:00:03]} 70. Rxd5+ {[%clk 0:00:02]}  Kxd5 {[%clk 0:00:04]} 71. Kd2 {[%clk 0:00:01]}  Ke4 {[%clk 0:00:05]} 72. Kd1 {[%clk 0:00:02]}  Ke3 {[%clk 0:00:06]} 73. Ke1 {[%clk 0:00:02]}  Kd4 {[%clk 0:00:06]} 74. Kd2 {[%clk 0:00:03]}  Kc4 {[%clk 0:00:07]} 75. Kd1 {[%clk 0:00:03]}  Kc3 {[%clk 0:00:08]} 76. Kc1 {[%clk 0:00:04]}  Kd4 {[%clk 0:00:09]} 77. Kd2 {[%clk 0:00:04]}  Ke4 {[%clk 0:00:09]} 78. Kd1 {[%clk 0:00:05]}  Kf3 {[%clk 0:00:10]} 79. Kd2 {[%clk 0:00:05]}  Ke4 {[%clk 0:00:10]} 1/2-1/2

[Event "December 12 Late 2023"]
[Site "https://www.chess.com"]
[Date "2023.12.12"]
[Round "1"]
[White "Davidson, Kevin"]
[Black "Oliveira, Tiago Batista"]
[Result "1-0"]
[Board "155"]
[TimeControl "180+1"]
[WhiteFideId "2056810"]
[BlackFideId "2108291"]
[WhiteElo "2530"]
[BlackElo "2083"]
[WhiteTeam "USA"]
[BlackTeam "BRA"]
[WhiteClock "0:00:45"]
[BlackClock "0:00:00"]

1. e4 {[%clk 0:02:57]}  e5 {[%clk 0:02:56]} 2. Nf3 {[%clk 0:02:46]}  Nc6 {[%clk 0:02:56]} 3. Bb5 {[%clk 0:02:45]}  a6 {[%clk 0:02:55]} 4. Ba4 {[%clk 0:02:45]}  Nf6 {[%clk 0:02:54]} 5. O-O {[%clk 0:02:45]}  Nxe4 {[%clk 0:02:54]} 6. d4 {[%clk 0:02:42]}  b5 {[%clk 0:02:53]} 7. Bb3 {[%clk 0:02:42]}  d5 {[%clk 0:02:52]} 8. dxe5 {[%clk 0:02:42]}  Be6 {[%clk 0:02:51]} 9. c3 {[%clk 0:02:42]}  Bc5 {[%clk 0:02:50]} 10. Qd3 {[%clk 0:02:42]}  Bb6 {[%clk 0:02:39]} 11. Be3 {[%clk 0:02:39]}  Nc5 {[%clk 0:02:26]} 12. Bxc5 {[%clk 0:02:25]}  Bxc5 {[%clk 0:02:26]} 13. Rd1 {[%clk 0:02:13]}  Ne7 {[%clk 0:02:25]} 14. Nd4 {[%clk 0:02:06]}  O-O {[%clk 0:02:20]} 15. Nd2 {[%clk 0:02:02]}  Bb6 {[%clk 0:02:19]} 16. Bc2 {[%clk 0:01:56]}  g6 {[%clk 0:02:16]} 17. Nxe6 {[%clk 0:01:52]}  fxe6 {[%clk 0:02:16]} 18. Rf1 {[%clk 0:01:41]}  Nf5 {[%clk 0:02:13]} 19. Qh3 {[%clk 0:01:38]}  Rf7 {[%clk 0:01:51]} 20. Nf3 {[%clk 0:01:37]}  Qe7 {[%clk 0:01:34]} 21. a4 {[%clk 0:01:25]}  Raf8 {[%clk 0:01:30]} 22. axb5 {[%clk 0:01:22]}  axb5 {[%clk 0:01:29]} 23. Bd3 {[%clk 0:01:17]}  c6 {[%clk 0:01:27]} 24. Ra6 {[%clk 0:01:09]}  Qb7 {[%clk 0:01:22]} 25. Rfa1 {[%clk 0:01:05]}  b4 {[%clk 0:00:26]} 26. Qg4 {[%clk 0:01:03]}  bxc3 {[%clk 0:00:21]} 27. bxc3 {[%clk 0:01:04]}  Bc5 {[%clk 0:00:14]} 28. h4 {[%clk 0:00:58]}  Qb2 {[%clk 0:00:11]} 29. Rf1 {[%clk 0:00:54]}  Nh6 {[%clk 0:00:02]} 30. Qxe6 {[%clk 0:00:51]}  Nf5 {[%clk 0:00:00]} 31. Rxc6 {[%clk 0:00:45]} 1-0

[Event "December 12 Late 2023"]
[Site "https://www.chess.com"]
[Date "2023.12.12"]
[Round "1"]
[White "MasterofMasters2006"]
[Black "Kopczynski, Michal"]
[Result "0-1"]
[Board "158"]
[TimeControl "180+1"]
[BlackFideId "1124200"]
[WhiteElo "2059"]
[BlackElo "2526"]
[BlackTeam "POL"]
[WhiteClock "0:00:04"]
[BlackClock "0:00:22"]

1. d4 {[%clk 0:02:59]}  Nf6 {[%clk 0:02:59]} 2. c4 {[%clk 0:02:59]}  g6 {[%clk 0:02:59]} 3. f3 {[%clk 0:02:59]}  Bg7 {[%clk 0:03:00]} 4. e4 {[%clk 0:02:58]}  d6 {[%clk 0:03:01]} 5. Nc3 {[%clk 0:02:59]}  O-O {[%clk 0:03:01]} 6. Be3 {[%clk 0:02:59]}  e5 {[%clk 0:03:02]} 7. d5 {[%clk 0:02:58]}  Nh5 {[%clk 0:03:01]} 8. g4 {[%clk 0:02:51]}  Nf4 {[%clk 0:02:59]} 9. h4 {[%clk 0:02:46]}  f5 {[%clk 0:02:50]} 10. gxf5 {[%clk 0:02:35]}  gxf5 {[%clk 0:02:51]} 11. Nge2 {[%clk 0:02:35]}  fxe4 {[%clk 0:02:49]} 12. Nxe4 {[%clk 0:02:25]}  Kh8 {[%clk 0:02:46]} 13. Qd2 {[%clk 0:02:24]}  c6 {[%clk 0:02:18]} 14. dxc6 {[%clk 0:02:00]}  Nxc6 {[%clk 0:02:16]} 15. O-O-O {[%clk 0:01:57]}  Be6 {[%clk 0:02:07]} 16. b3 {[%clk 0:01:38]}  d5 {[%clk 0:01:54]} 17. Ng5 {[%clk 0:01:32]}  Bg8 {[%clk 0:01:44]} 18. Bxf4 {[%clk 0:01:18]}  exf4 {[%clk 0:01:42]} 19. cxd5 {[%clk 0:01:06]}  Qf6 {[%clk 0:01:26]} 20. Qc2 {[%clk 0:00:49]}  Nb4 {[%clk 0:01:17]} 21. Qb1 {[%clk 0:00:37]}  Rac8+ {[%clk 0:01:12]} 22. Kd2 {[%clk 0:00:37]}  Nxd5 {[%clk 0:01:07]} 23. Ke1 {[%clk 0:00:31]}  Ne3 {[%clk 0:01:01]} 24. Rd7 {[%clk 0:00:20]}  h6 {[%clk 0:01:00]} 25. Bh3 {[%clk 0:00:13]}  Rc2 {[%clk 0:00:51]} 26. Be6 {[%clk 0:00:12]}  Bxe6 {[%clk 0:00:45]} 27. Rd2 {[%clk 0:00:07]}  Bf5 {[%clk 0:00:42]} 28. Nd4 {[%clk 0:00:06]}  Rxd2 {[%clk 0:00:27]} 29. Nxf5 {[%clk 0:00:04]}  Rd1+ {[%clk 0:00:22]} 0-1

[Event "December 12 Late 2023"]
[Site "https://www.chess.com"]
[Date "2023.12.12"]
[Round "1"]
[White "YurasovMat-2012"]
[Black "Diaz Garcia, Lianet"]
[Result "0-1"]
[Board "159"]
[TimeControl "180+1"]
[BlackFideId "3526747"]
[WhiteElo "2524"]
[BlackElo "2052"]
[BlackTeam "CUB"]
[WhiteClock "0:00:00"]
[BlackClock "0:00:07"]

1. e4 {[%clk 0:02:57]}  c5 {[%clk 0:02:59]} 2. Nf3 {[%clk 0:02:56]}  d6 {[%clk 0:02:59]} 3. Bb5+ {[%clk 0:02:56]}  Nc6 {[%clk 0:02:57]} 4. d4 {[%clk 0:02:54]}  cxd4 {[%clk 0:02:57]} 5. Nxd4 {[%clk 0:02:53]}  Bd7 {[%clk 0:02:57]} 6. O-O {[%clk 0:02:53]}  g6 {[%clk 0:02:47]} 7. c4 {[%clk 0:02:51]}  Bg7 {[%clk 0:02:46]} 8. Be3 {[%clk 0:02:50]}  Nf6 {[%clk 0:02:44]} 9. Nc3 {[%clk 0:02:47]}  O-O {[%clk 0:02:41]} 10. f3 {[%clk 0:02:45]}  Nxd4 {[%clk 0:02:35]} 11. Bxd4 {[%clk 0:02:42]}  a6 {[%clk 0:02:32]} 12. Bxd7 {[%clk 0:02:42]}  Nxd7 {[%clk 0:02:32]} 13. Bxg7 {[%clk 0:02:41]}  Kxg7 {[%clk 0:02:33]} 14. Qd4+ {[%clk 0:02:37]}  Kg8 {[%clk 0:01:57]} 15. Kh1 {[%clk 0:02:35]}  Qb6 {[%clk 0:01:50]} 16. Qd2 {[%clk 0:02:34]}  Rfc8 {[%clk 0:01:38]} 17. b3 {[%clk 0:02:34]}  Nf6 {[%clk 0:01:17]} 18. Rad1 {[%clk 0:02:32]}  Qa5 {[%clk 0:01:14]} 19. a4 {[%clk 0:02:20]}  Qb4 {[%clk 0:01:07]} 20. Nd5 {[%clk 0:02:17]}  Nxd5 {[%clk 0:01:05]} 21. exd5 {[%clk 0:02:11]}  Qxb3 {[%clk 0:01:03]} 22. Rfe1 {[%clk 0:02:07]}  Rc7 {[%clk 0:00:57]} 23. c5 {[%clk 0:01:20]}  dxc5 {[%clk 0:00:46]} 24. d6 {[%clk 0:00:58]}  exd6 {[%clk 0:00:45]} 25. Qxd6 {[%clk 0:00:58]}  Rac8 {[%clk 0:00:46]} 26. a5 {[%clk 0:00:56]}  c4 {[%clk 0:00:39]} 27. Rd4 {[%clk 0:00:51]}  c3 {[%clk 0:00:34]} 28. Rde4 {[%clk 0:00:51]}  Qb5 {[%clk 0:00:10]} 29. Re5 {[%clk 0:00:47]}  Qc6 {[%clk 0:00:10]} 30. Qd1 {[%clk 0:00:41]}  c2 {[%clk 0:00:09]} 31. Qc1 {[%clk 0:00:42]}  Qa4 {[%clk 0:00:09]} 32. h3 {[%clk 0:00:33]}  h5 {[%clk 0:00:09]} 33. Kh2 {[%clk 0:00:25]}  Rd7 {[%clk 0:00:09]} 34. Qh6 {[%clk 0:00:17]}  Rd1 {[%clk 0:00:08]} 35. Rc5 {[%clk 0:00:08]}  Rxc5 {[%clk 0:00:06]} 36. Re4 {[%clk 0:00:06]}  Qxe4 {[%clk 0:00:06]} 37. fxe4 {[%clk 0:00:00]}  c1=Q {[%clk 0:00:07]} 0-1

[Event "December 12 Late 2023"]
[Site "https://www.chess.com"]
[Date "2023.12.12"]
[Round "1"]
[White "De Souza, Arthur Olintho"]
[Black "Lin, Bryan Enming"]
[Result "0-1"]
[Board "160"]
[TimeControl "180+1"]
[WhiteFideId "2116200"]
[BlackFideId "30987121"]
[WhiteElo "2044"]
[BlackElo "2523"]
[WhiteTeam "BRA"]
[BlackTeam "USA"]
[WhiteClock "0:02:02"]
[BlackClock "0:02:46"]

1. e4 {[%clk 0:02:59]}  e5 {[%clk 0:02:59]} 2. Nf3 {[%clk 0:02:42]}  Nc6 {[%clk 0:02:58]} 3. d4 {[%clk 0:02:42]}  exd4 {[%clk 0:02:59]} 4. Nxd4 {[%clk 0:02:43]}  Bb4+ {[%clk 0:02:59]} 5. c3 {[%clk 0:02:43]}  Bc5 {[%clk 0:03:00]} 6. Nxc6 {[%clk 0:02:41]}  bxc6 {[%clk 0:02:59]} 7. Bd3 {[%clk 0:02:41]}  Qh4 {[%clk 0:02:55]} 8. O-O {[%clk 0:02:40]}  Nf6 {[%clk 0:02:54]} 9. e5 {[%clk 0:02:16]}  Ng4 {[%clk 0:02:53]} 10. h3 {[%clk 0:02:02]}  Nxf2 {[%clk 0:02:46]} 0-1

[Event "December 12 Late 2023"]
[Site "https://www.chess.com"]
[Date "2023.12.12"]
[Round "1"]
[White "Sroczynski, Maciej"]
[Black "Hernandez Bonilla, Amelia"]
[Result "1-0"]
[Board "161"]
[TimeControl "180+1"]
[WhiteFideId "1121472"]
[BlackFideId "3900193"]
[WhiteElo "2523"]
[BlackElo "2037"]
[WhiteTeam "POL"]
[BlackTeam "VEN"]
[WhiteClock "0:00:49"]
[BlackClock "0:00:21"]

1. e4 {[%clk 0:02:59]}  c5 {[%clk 0:02:55]} 2. Nf3 {[%clk 0:02:59]}  d6 {[%clk 0:02:55]} 3. d4 {[%clk 0:02:59]}  cxd4 {[%clk 0:02:56]} 4. Nxd4 {[%clk 0:02:59]}  Nf6 {[%clk 0:02:56]} 5. Nc3 {[%clk 0:02:59]}  Nc6 {[%clk 0:02:56]} 6. Nb3 {[%clk 0:02:56]}  e5 {[%clk 0:02:55]} 7. Bg5 {[%clk 0:02:54]}  Be6 {[%clk 0:02:55]} 8. g3 {[%clk 0:02:47]}  Be7 {[%clk 0:02:54]} 9. Bg2 {[%clk 0:02:47]}  O-O {[%clk 0:02:52]} 10. Bxf6 {[%clk 0:02:46]}  Bxf6 {[%clk 0:02:50]} 11. O-O {[%clk 0:02:46]}  Qd7 {[%clk 0:02:39]} 12. Nd5 {[%clk 0:02:44]}  Bd8 {[%clk 0:02:38]} 13. c3 {[%clk 0:02:43]}  f5 {[%clk 0:02:36]} 14. exf5 {[%clk 0:02:42]}  Bxf5 {[%clk 0:02:35]} 15. Nd2 {[%clk 0:02:33]}  Kh8 {[%clk 0:02:29]} 16. Ne4 {[%clk 0:02:30]}  Ne7 {[%clk 0:02:22]} 17. a4 {[%clk 0:02:19]}  Nxd5 {[%clk 0:02:19]} 18. Qxd5 {[%clk 0:02:19]}  Be7 {[%clk 0:02:14]} 19. Rfd1 {[%clk 0:02:16]}  Rad8 {[%clk 0:02:13]} 20. Rd2 {[%clk 0:02:14]}  Be6 {[%clk 0:02:11]} 21. Qd3 {[%clk 0:02:14]}  d5 {[%clk 0:02:07]} 22. Qe3 {[%clk 0:02:07]}  Qc6 {[%clk 0:02:03]} 23. Ng5 {[%clk 0:02:06]}  Bc5 {[%clk 0:02:01]} 24. Qxe5 {[%clk 0:01:59]}  Bg8 {[%clk 0:01:55]} 25. c4 {[%clk 0:01:41]}  Rde8 {[%clk 0:01:49]} 26. cxd5 {[%clk 0:01:34]}  Rxe5 {[%clk 0:01:45]} 27. dxc6 {[%clk 0:01:34]}  Rxg5 {[%clk 0:01:45]} 28. cxb7 {[%clk 0:01:34]}  Rgf5 {[%clk 0:01:42]} 29. Rc1 {[%clk 0:01:25]}  Rxf2 {[%clk 0:01:15]} 30. Rxf2 {[%clk 0:01:20]}  Bxf2+ {[%clk 0:01:14]} 31. Kh1 {[%clk 0:01:16]}  Be6 {[%clk 0:01:12]} 32. Rf1 {[%clk 0:01:12]}  Kg8 {[%clk 0:00:45]} 33. Rxf2 {[%clk 0:01:11]}  Rd8 {[%clk 0:00:45]} 34. h3 {[%clk 0:01:00]}  h5 {[%clk 0:00:32]} 35. Re2 {[%clk 0:00:57]}  Kf7 {[%clk 0:00:32]} 36. Re5 {[%clk 0:00:50]}  g6 {[%clk 0:00:31]} 37. Ra5 {[%clk 0:00:50]}  Rd1+ {[%clk 0:00:21]} 38. Kh2 {[%clk 0:00:49]} 1-0

[Event "December 12 Late 2023"]
[Site "https://www.chess.com"]
[Date "2023.12.12"]
[Round "1"]
[White "Morris-Suzuki, Alan H"]
[Black "Gulamirian, Korun"]
[Result "1-0"]
[Board "163"]
[TimeControl "180+1"]
[WhiteFideId "30933218"]
[BlackFideId "4144899"]
[WhiteElo "2522"]
[BlackElo "2026"]
[WhiteTeam "USA"]
[BlackTeam "RUS"]
[WhiteClock "0:00:13"]
[BlackClock "0:00:00"]

1. Nf3 {[%clk 0:02:57]}  Nf6 {[%clk 0:02:59]} 2. g3 {[%clk 0:02:47]}  d5 {[%clk 0:02:57]} 3. Bg2 {[%clk 0:02:47]}  c6 {[%clk 0:02:53]} 4. O-O {[%clk 0:02:39]}  g6 {[%clk 0:02:52]} 5. c4 {[%clk 0:02:32]}  Bg7 {[%clk 0:02:51]} 6. d4 {[%clk 0:02:31]}  O-O {[%clk 0:02:47]} 7. Nc3 {[%clk 0:02:31]}  dxc4 {[%clk 0:02:45]} 8. a4 {[%clk 0:02:21]}  Nbd7 {[%clk 0:02:34]} 9. e4 {[%clk 0:02:19]}  Ne8 {[%clk 0:02:20]} 10. Qe2 {[%clk 0:01:55]}  Nc7 {[%clk 0:02:11]} 11. Qxc4 {[%clk 0:01:46]}  Nb6 {[%clk 0:02:10]} 12. Qd3 {[%clk 0:01:46]}  e5 {[%clk 0:02:07]} 13. a5 {[%clk 0:01:43]}  Nd7 {[%clk 0:01:57]} 14. Bg5 {[%clk 0:01:39]}  Qe8 {[%clk 0:01:53]} 15. d5 {[%clk 0:01:25]}  cxd5 {[%clk 0:01:50]} 16. exd5 {[%clk 0:01:14]}  Nc5 {[%clk 0:01:45]} 17. Qc4 {[%clk 0:01:12]}  h6 {[%clk 0:01:16]} 18. Be3 {[%clk 0:01:02]}  e4 {[%clk 0:01:05]} 19. Nd2 {[%clk 0:00:55]}  N7a6 {[%clk 0:00:55]} 20. b4 {[%clk 0:00:54]}  Nd3 {[%clk 0:00:51]} 21. b5 {[%clk 0:00:52]}  Nab4 {[%clk 0:00:46]} 22. Ndxe4 {[%clk 0:00:49]}  Bf5 {[%clk 0:00:38]} 23. Nd6 {[%clk 0:00:47]}  Qe5 {[%clk 0:00:33]} 24. Nxf5 {[%clk 0:00:47]}  Qxf5 {[%clk 0:00:31]} 25. Bd4 {[%clk 0:00:44]}  Bxd4 {[%clk 0:00:23]} 26. Qxd4 {[%clk 0:00:42]}  Nc2 {[%clk 0:00:22]} 27. Qa4 {[%clk 0:00:38]}  Nxa1 {[%clk 0:00:20]} 28. Be4 {[%clk 0:00:37]}  Qe5 {[%clk 0:00:15]} 29. Qxa1 {[%clk 0:00:37]}  Rac8 {[%clk 0:00:12]} 30. Bxd3 {[%clk 0:00:32]}  Qxc3 {[%clk 0:00:10]} 31. Be4 {[%clk 0:00:21]}  f5 {[%clk 0:00:07]} 32. Bg2 {[%clk 0:00:20]}  Qxa1 {[%clk 0:00:06]} 33. Rxa1 {[%clk 0:00:21]}  Rc5 {[%clk 0:00:05]} 34. b6 {[%clk 0:00:19]}  axb6 {[%clk 0:00:03]} 35. axb6 {[%clk 0:00:18]}  Rd8 {[%clk 0:00:00]} 36. Ra7 {[%clk 0:00:13]} 1-0

[Event "December 12 Late 2023"]
[Site "https://www.chess.com"]
[Date "2023.12.12"]
[Round "1"]
[White "Rizzo, Tobias"]
[Black "Desideri, Ricardo Maruchi"]
[Result "1-0"]
[Board "165"]
[TimeControl "180+1"]
[WhiteFideId "30942691"]
[BlackFideId "2110440"]
[WhiteElo "2519"]
[BlackElo "2023"]
[WhiteTeam "USA"]
[BlackTeam "BRA"]
[WhiteClock "0:02:14"]
[BlackClock "0:01:45"]

1. d4 {[%clk 0:03:00]}  Nf6 {[%clk 0:02:59]} 2. Bg5 {[%clk 0:03:00]}  e6 {[%clk 0:02:56]} 3. e4 {[%clk 0:02:59]}  h6 {[%clk 0:02:51]} 4. Bxf6 {[%clk 0:03:00]}  Qxf6 {[%clk 0:02:50]} 5. c3 {[%clk 0:03:00]}  c5 {[%clk 0:02:48]} 6. Nf3 {[%clk 0:03:00]}  Nc6 {[%clk 0:02:47]} 7. Bb5 {[%clk 0:02:48]}  a6 {[%clk 0:02:41]} 8. Bxc6 {[%clk 0:02:43]}  bxc6 {[%clk 0:02:40]} 9. O-O {[%clk 0:02:35]}  d5 {[%clk 0:02:38]} 10. Nbd2 {[%clk 0:02:29]}  Be7 {[%clk 0:02:36]} 11. Re1 {[%clk 0:02:28]}  O-O {[%clk 0:02:35]} 12. Ne5 {[%clk 0:02:26]}  cxd4 {[%clk 0:02:12]} 13. Nxc6 {[%clk 0:02:19]}  dxc3 {[%clk 0:02:09]} 14. e5 {[%clk 0:02:19]}  Qg5 {[%clk 0:02:03]} 15. Nf3 {[%clk 0:02:19]}  cxb2 {[%clk 0:01:55]} 16. Nxg5 {[%clk 0:02:17]}  bxa1=Q {[%clk 0:01:53]} 17. Nxe7+ {[%clk 0:02:17]}  Kh8 {[%clk 0:01:51]} 18. Qxa1 {[%clk 0:02:17]}  hxg5 {[%clk 0:01:45]} 19. Qc3 {[%clk 0:02:14]} 1-0

[Event "December 12 Late 2023"]
[Site "https://www.chess.com"]
[Date "2023.12.12"]
[Round "2"]
[White "Nihal Sarin"]
[Black "Solon, Nathan"]
[Result "1-0"]
[Board "1"]
[TimeControl "180+1"]
[WhiteFideId "25092340"]
[BlackFideId "2017229"]
[WhiteElo "3143"]
[BlackElo "2653"]
[WhiteTeam "IND"]
[BlackTeam "USA"]
[WhiteClock "0:00:46"]
[BlackClock "0:00:01"]

1. c4 {[%clk 0:02:54]}  c6 {[%clk 0:02:59]} 2. Nf3 {[%clk 0:02:53]}  d5 {[%clk 0:03:00]} 3. e3 {[%clk 0:02:53]}  Nf6 {[%clk 0:03:00]} 4. Nc3 {[%clk 0:02:54]}  e6 {[%clk 0:03:01]} 5. b3 {[%clk 0:02:52]}  Bd6 {[%clk 0:03:00]} 6. Bb2 {[%clk 0:02:53]}  O-O {[%clk 0:03:01]} 7. d4 {[%clk 0:02:52]}  Nbd7 {[%clk 0:02:58]} 8. Bd3 {[%clk 0:02:52]}  e5 {[%clk 0:02:54]} 9. cxd5 {[%clk 0:02:47]}  cxd5 {[%clk 0:02:51]} 10. dxe5 {[%clk 0:02:46]}  Nxe5 {[%clk 0:02:52]} 11. Be2 {[%clk 0:02:44]}  Nc6 {[%clk 0:02:37]} 12. O-O {[%clk 0:02:42]}  a6 {[%clk 0:02:34]} 13. Rc1 {[%clk 0:02:32]}  Re8 {[%clk 0:02:35]} 14. h3 {[%clk 0:02:20]}  Be6 {[%clk 0:02:17]} 15. Bd3 {[%clk 0:02:20]}  Qd7 {[%clk 0:02:10]} 16. Ng5 {[%clk 0:02:17]}  Bf5 {[%clk 0:02:08]} 17. Na4 {[%clk 0:02:09]}  Bxd3 {[%clk 0:01:58]} 18. Qxd3 {[%clk 0:02:10]}  Ne4 {[%clk 0:01:59]} 19. Nb6 {[%clk 0:02:03]}  Qe7 {[%clk 0:01:46]} 20. Nxa8 {[%clk 0:01:37]}  Qxg5 {[%clk 0:01:45]} 21. Nb6 {[%clk 0:01:36]}  Ne5 {[%clk 0:00:31]} 22. Bxe5 {[%clk 0:01:27]}  Qxe5 {[%clk 0:00:32]} 23. f4 {[%clk 0:01:27]}  Qb2 {[%clk 0:00:31]} 24. Rc2 {[%clk 0:01:19]}  Qa3 {[%clk 0:00:31]} 25. Qxd5 {[%clk 0:01:13]}  Qb4 {[%clk 0:00:18]} 26. Rc4 {[%clk 0:00:59]}  Qxb6 {[%clk 0:00:08]} 27. Rxe4 {[%clk 0:00:58]}  Rd8 {[%clk 0:00:08]} 28. Rd1 {[%clk 0:00:53]}  g6 {[%clk 0:00:06]} 29. Qc4 {[%clk 0:00:49]}  Bf8 {[%clk 0:00:02]} 30. Rxd8 {[%clk 0:00:48]}  Qxd8 {[%clk 0:00:03]} 31. Rd4 {[%clk 0:00:49]}  Qb6 {[%clk 0:00:03]} 32. Kf2 {[%clk 0:00:46]}  Bc5 {[%clk 0:00:02]} 33. Rd7 {[%clk 0:00:45]}  Bxe3+ {[%clk 0:00:01]} 34. Kf3 {[%clk 0:00:45]}  Bc5 {[%clk 0:00:01]} 35. Qxf7+ {[%clk 0:00:45]}  Kh8 {[%clk 0:00:01]} 36. Qxh7# {[%clk 0:00:46]} 1-0